fUST/lending_fUST_20250811
["ID","MTS","AMOUNT","RATE_DAILY","PERIOD"]
[378580746,1754916646923,-554.33,0.00019452,2]
[378580747,1754916646932,-460.0,0.00019452,2]
[378580748,1754916646942,-247.86691074,0.00019452,2]
[378580749,1754916646952,-460.0,0.00019452,2]
[378580750,1754916646961,-460.0,0.00019452,2]
[378580751,1754916646971,-460.0,0.00019452,2]
[378580752,1754916646980,-460.0,0.00019452,2]
[378580753,1754916646990,-501.22,0.00019452,2]
[378580754,1754916646999,-709.58,0.00019452,2]
[378580755,1754916647009,-460.0,0.00019452,2]
[378580756,1754916647018,-460.0,0.00019452,2]
[378580757,1754916647027,-460.0,0.00019452,2]
[378580758,1754916647036,-462.07793739,0.00019452,2]
[378580759,1754916647046,-3168.8,0.00019452,2]
[378580760,1754916647056,-460.0,0.00019452,2]
[378580761,1754916647065,-460.0,0.00019452,2]
[378580762,1754916647075,-471.45,0.00019452,2]
[378580763,1754916647084,-1169.83,0.00019452,2]
[378580764,1754916647093,-1087.88,0.00019452,2]
[378580765,1754916647103,-460.0,0.00019452,2]
[378580766,1754916647112,-709.99,0.00019452,2]
[378580767,1754916647122,-460.0,0.00019452,2]
[378580768,1754916647133,-952.21,0.00019452,2]
[378580769,1754916647142,-793.36,0.00019452,2]
[378580770,1754916647152,-704.33,0.00019452,2]
[378580771,1754916647161,-584.88,0.00019452,2]
[378580772,1754916647171,-1256.98,0.00019452,2]
[378580773,1754916647180,-460.0,0.00019452,2]
[378580774,1754916647190,-460.0,0.00019452,2]
[378580775,1754916647200,-178.01816841,0.00019452,2]
[378580776,1754916647209,-460.0,0.00019452,2]
[378580777,1754916647218,-460.0,0.00019452,2]
[378580778,1754916647227,-460.0,0.00019452,2]
[378580779,1754916647237,-2123.22,0.00019452,2]
[378580780,1754916647246,-699.41,0.00019452,2]
[378580781,1754916647256,-460.0,0.00019452,2]
[378580782,1754916647266,-460.0,0.00019452,2]
[378580783,1754916647275,-460.0,0.00019452,2]
[378580784,1754916647284,-460.0,0.00019452,2]
[378580785,1754916647294,-460.0,0.00019452,2]
[378580786,1754916647303,-561.01,0.00019452,2]
[378580787,1754916647313,-790.68,0.00019452,2]
[378580788,1754916647323,-460.0,0.00019452,2]
[378580789,1754916647333,-460.0,0.00019452,2]
[378580790,1754916647342,-914.88,0.00019452,2]
[378580791,1754916647351,-1237.86,0.00019452,2]
[378580792,1754916647362,-460.0,0.00019452,2]
[378580793,1754916647372,-460.0,0.00019452,2]
[378580794,1754916647383,-460.0,0.00019452,2]
[378580795,1754916647393,-460.0,0.00019452,2]
[378580796,1754916647402,-460.0,0.00019452,2]
[378580797,1754916647412,-460.0,0.00019452,2]
[378580798,1754916647422,-1083.43,0.00019452,2]
[378580799,1754916647432,-460.0,0.00019452,2]
[378580800,1754916647441,-460.0,0.00019452,2]
[378580801,1754916647451,-460.0,0.00019452,2]
[378580802,1754916647462,-460.0,0.00019452,2]
[378580803,1754916647471,-488.53,0.00019452,2]
[378580804,1754916647480,-200.0,0.00019455,15]
[378580805,1754916647490,-200.0,0.00019455,15]
[378580806,1754916647500,-200.0,0.00019455,15]
[378580807,1754916647515,-200.0,0.00019455,15]
[378580809,1754916647536,-151.0,0.00019465,2]
[378580811,1754916647546,-152.310469,0.00019465,2]
[378580813,1754916647555,-433.884154,0.00019465,2]
[378580815,1754916647564,-433.884154,0.00019465,2]
[378580817,1754916647574,-151.0,0.00019465,2]
[378580819,1754916647583,-151.0,0.00019465,2]
[378580821,1754916647592,-151.0,0.00019465,2]
[378580823,1754916647601,-151.0,0.00019465,2]
[378580825,1754916647611,-460.0,0.00019465,2]
[378580827,1754916647620,-460.0,0.00019465,2]
[378580829,1754916647630,-846.638326,0.00019465,2]
[378580831,1754916647641,-460.0,0.00019465,2]
[378580833,1754916647656,-846.638326,0.00019465,2]
[378580834,1754916647665,-3448.79,0.00019465,2]
[378580836,1754916647681,-460.0,0.00019465,2]
[378580838,1754916647694,-302.84859387,0.00019467,2]
[378580840,1754916647704,-500.0,0.00019515,2]
[378580842,1754916647714,-281.5763041,0.00019515,2]
[378580844,1754916647723,-4620.25,0.00019515,2]
[378580846,1754916647732,-460.0,0.00019515,2]
[378580848,1754916647742,-460.0,0.00019515,2]
[378580850,1754916647751,-1339.77,0.00019515,2]
[378580852,1754916647761,-1030.07,0.00019515,2]
[378580854,1754916647770,-689.31,0.00019515,2]
[378580856,1754916647780,-4816.69,0.00019515,2]
[378580858,1754916647789,-1935.27,0.00019515,2]
[378580860,1754916647798,-460.0,0.00019515,2]
[378580861,1754916647808,-1061.88,0.00019515,2]
[378580863,1754916647818,-3640.4,0.00019515,2]
[378580865,1754916647827,-766.01,0.00019515,2]
[378580867,1754916647837,-935.09,0.00019515,2]
[378580869,1754916647846,-456.69730672,0.00019515,2]
[378580871,1754916647856,-2736.69,0.00019515,2]
[378580873,1754916647866,-513.77691659,0.0001952,2]
[378580875,1754916647876,-460.0,0.00019536,2]
[378580877,1754916647887,-460.0,0.00019536,2]
[378580879,1754916647896,-1211.32,0.00019536,2]
[378580881,1754916647905,-460.0,0.00019536,2]
[378580883,1754916647916,-460.0,0.00019536,2]
[378580885,1754916647925,-661.94,0.00019536,2]
[378580887,1754916647935,-460.0,0.00019536,2]
[378580889,1754916647944,-460.0,0.00019536,2]
[378580891,1754916647954,-772.97,0.00019536,2]
[378580893,1754916647963,-460.0,0.00019536,2]
[378580895,1754916647972,-460.0,0.00019536,2]
[378580897,1754916647982,-777.24,0.00019536,2]
[378580899,1754916647991,-460.0,0.00019536,2]
[378580901,1754916648000,-460.0,0.00019536,2]
[378580903,1754916648009,-460.0,0.00019536,2]
[378580905,1754916648018,-460.0,0.00019536,2]
[378580907,1754916648028,-460.0,0.00019536,2]
[378580909,1754916648038,-1417.56,0.00019536,2]
[378580910,1754916648048,-2484.09,0.00019536,2]
[378580912,1754916648057,-460.0,0.00019536,2]
[378580914,1754916648067,-460.0,0.00019536,2]
[378580916,1754916648077,-460.0,0.00019536,2]
[378580918,1754916648087,-880.99,0.00019536,2]
[378580920,1754916648096,-460.0,0.00019536,2]
[378580922,1754916648106,-1575.75,0.00019536,2]
[378580924,1754916648115,-460.0,0.00019536,2]
[378580926,1754916648124,-1496.99,0.00019536,2]
[378580928,1754916648136,-460.0,0.00019536,2]
[378580930,1754916648146,-460.0,0.00019536,2]
[378580932,1754916648156,-943.43,0.00019536,2]
[378580934,1754916648166,-460.0,0.00019537,2]
[378580936,1754916648175,-460.0,0.00019537,2]
[378580938,1754916648185,-460.0,0.00019537,2]
[378580940,1754916648194,-460.0,0.00019537,2]
[378580942,1754916648204,-460.0,0.00019537,2]
[378580944,1754916648214,-460.0,0.00019537,2]
[378580946,1754916648223,-258.51550612,0.00019537,2]
[378580948,1754916648232,-460.0,0.00019537,2]
[378580950,1754916648242,-460.0,0.00019537,2]
[378580952,1754916648252,-460.0,0.00019537,2]
[378580954,1754916648262,-460.0,0.00019537,2]
[378580955,1754916648275,-460.0,0.00019537,2]
[378580957,1754916648296,-460.0,0.00019537,2]
[378580959,1754916648307,-460.0,0.00019537,2]
[378580961,1754916648319,-460.0,0.00019537,2]
[378580963,1754916648329,-460.0,0.00019537,2]
[378580965,1754916648339,-499.57,0.00019537,2]
[378580967,1754916648350,-1176.84,0.00019537,2]
[378580969,1754916648362,-460.0,0.00019537,2]
[378580971,1754916648374,-460.0,0.00019537,2]
[378580973,1754916648389,-460.0,0.00019537,2]
[378580975,1754916648399,-778.14,0.00019537,2]
[378580977,1754916648409,-460.0,0.00019537,2]
[378580979,1754916648419,-460.0,0.00019537,2]
[378580981,1754916648428,-460.0,0.00019537,2]
[378580983,1754916648438,-460.0,0.00019537,2]
[378580985,1754916648449,-313.22695606,0.00019537,2]
[378580986,1754916648463,-724.29,0.00019537,2]
[378580988,1754916648472,-460.0,0.00019537,2]
[378580990,1754916648482,-460.0,0.00019537,2]
[378580992,1754916648492,-460.0,0.00019537,2]
[378580994,1754916648502,-460.0,0.00019537,2]
[378580996,1754916648512,-460.0,0.00019537,2]
[378580998,1754916648522,-460.0,0.00019537,2]
[378581000,1754916648532,-460.0,0.00019537,2]
[378581002,1754916648542,-463.20594433,0.00019537,2]
[378581004,1754916648551,-460.0,0.00019537,2]
[378581006,1754916648561,-460.0,0.00019537,2]
[378581008,1754916648571,-460.0,0.00019537,2]
[378581010,1754916648582,-460.0,0.00019537,2]
[378581012,1754916648595,-437.37877438,0.00019537,2]
[378581036,1754916648845,-362.1324,0.00019537,2]
[378581060,1754916649077,-151.0,0.00019231,2]
[378581062,1754916649087,-250.0,0.00019231,2]
[378581064,1754916649097,-151.0,0.00019231,2]
[378581066,1754916649107,-163.6763441,0.00019452,2]
[378581068,1754916649118,-296.3236559,0.00019452,2]
[378581070,1754916649128,-460.0,0.00019452,2]
[378581072,1754916649139,-143.02882562,0.00019537,2]
[378581074,1754916649148,-460.0,0.00019537,2]
[378581076,1754916649158,-460.0,0.00019537,2]
[378581078,1754916649167,-748.76,0.00019537,2]
[378581080,1754916649176,-486.97963702,0.00019537,2]
[378581082,1754916649188,-414.12036298,0.00019537,2]
[378581084,1754916649198,-1536.91,0.00019537,2]
[378581086,1754916649207,-460.0,0.00019537,2]
[378581088,1754916649216,-643.5,0.00019537,2]
[378581090,1754916649225,-637.59,0.00019537,2]
[378581092,1754916649234,-480.63,0.00019537,2]
[378581094,1754916649243,-750.86,0.00019537,2]
[378581096,1754916649253,-460.0,0.00019537,2]
[378581098,1754916649262,-460.0,0.00019537,2]
[378581099,1754916649271,-441.36581678,0.00019537,2]
[378581101,1754916649281,-460.0,0.00019537,2]
[378581103,1754916649290,-460.0,0.00019537,2]
[378581105,1754916649299,-636.92,0.00019537,2]
[378581107,1754916649309,-460.0,0.00019537,2]
[378581109,1754916649318,-1185.48,0.00019537,2]
[378581111,1754916649328,-460.0,0.00019537,2]
[378581113,1754916649338,-1000.0,0.00019537,2]
[378581115,1754916649347,-460.0,0.00019537,2]
[378581117,1754916649356,-460.0,0.00019537,2]
[378581119,1754916649366,-460.0,0.00019537,2]
[378581121,1754916649375,-460.0,0.00019537,2]
[378581123,1754916649385,-608.15,0.00019537,2]
[378581125,1754916649395,-460.0,0.00019537,2]
[378581127,1754916649404,-460.0,0.00019537,2]
[378581129,1754916649413,-460.0,0.00019537,2]
[378581131,1754916649423,-460.0,0.00019537,2]
[378581133,1754916649433,-460.0,0.00019537,2]
[378581135,1754916649443,-460.0,0.00019537,2]
[378581137,1754916649456,-460.0,0.00019537,2]
[378581139,1754916649465,-798.76,0.00019537,2]
[378581141,1754916649475,-460.0,0.00019537,2]
[378581143,1754916649484,-460.0,0.00019537,2]
[378581145,1754916649494,-515.37,0.00019537,2]
[378581147,1754916649505,-460.0,0.00019537,2]
[378581149,1754916649514,-460.0,0.00019537,2]
[378581151,1754916649524,-609.3,0.00019537,2]
[378581153,1754916649534,-460.0,0.00019537,2]
[378581155,1754916649544,-686.18,0.00019537,2]
[378581157,1754916649554,-460.0,0.00019537,2]
[378581159,1754916649564,-460.0,0.00019537,2]
[378581161,1754916649573,-455.22761106,0.00019537,2]
[378581163,1754916649583,-460.0,0.00019537,2]
[378581165,1754916649593,-634.32,0.00019537,2]
[378581167,1754916649602,-396.91442904,0.00019537,2]
[378581169,1754916649613,-460.0,0.00019537,2]
[378581171,1754916649623,-460.0,0.00019537,2]
[378581173,1754916649632,-460.0,0.00019537,2]
[378581175,1754916649642,-460.0,0.00019537,2]
[378581177,1754916649652,-460.0,0.00019537,2]
[378581179,1754916649662,-522.78544404,0.00019537,2]
[378581181,1754916649672,-460.0,0.00019537,2]
[378581183,1754916649682,-460.0,0.00019537,2]
[378581185,1754916649692,-1568.39,0.00019537,2]
[378581187,1754916649703,-460.0,0.00019537,2]
[378581189,1754916649713,-600.90217163,0.00019537,2]
[378581191,1754916649723,-1343.0,0.00019537,2]
[378581193,1754916649732,-464.50508194,0.00019537,2]
[378581195,1754916649744,-460.0,0.00019537,2]
[378581197,1754916649754,-460.0,0.00019537,2]
[378581199,1754916649764,-460.0,0.00019537,2]
[378581201,1754916649774,-527.91,0.00019537,2]
[378581203,1754916649784,-460.0,0.00019537,2]
[378581205,1754916649794,-460.0,0.00019537,2]
[378581207,1754916649804,-710.19,0.00019537,2]
[378581209,1754916649815,-460.0,0.00019537,2]
[378581211,1754916649825,-460.0,0.00019537,2]
[378581213,1754916649835,-460.0,0.00019537,2]
[378581215,1754916649846,-460.0,0.00019537,2]
[378581217,1754916649857,-460.0,0.00019537,2]
[378581219,1754916649867,-460.0,0.00019537,2]
[378581221,1754916649878,-460.0,0.00019537,2]
[378581223,1754916649888,-843.0,0.00019537,2]
[378581225,1754916649898,-460.0,0.00019537,2]
[378581227,1754916649908,-460.0,0.00019537,2]
[378581229,1754916649918,-210.53985961,0.00019537,2]
[378581231,1754916649928,-664.91,0.00019537,2]
[378581233,1754916649938,-460.0,0.00019537,2]
[378581235,1754916649948,-1737.88,0.00019537,2]
[378581237,1754916649958,-460.0,0.00019537,2]
[378581240,1754916649968,-738.49,0.00019537,2]
[378581242,1754916649978,-460.0,0.00019537,2]
[378581243,1754916649988,-460.0,0.00019537,2]
[378581246,1754916649999,-460.0,0.00019537,2]
[378581247,1754916650008,-460.0,0.00019537,2]
[378581248,1754916650018,-460.0,0.00019537,2]
[378581249,1754916650027,-460.0,0.00019537,2]
[378581250,1754916650037,-460.0,0.00019537,2]
[378581251,1754916650046,-500.0,0.00019537,2]
[378581252,1754916650056,-460.0,0.00019537,2]
[378581253,1754916650065,-778.65,0.00019537,2]
[378581254,1754916650075,-460.0,0.00019537,2]
[378581255,1754916650085,-460.0,0.00019537,2]
[378581256,1754916650095,-460.0,0.00019537,2]
[378581258,1754916650105,-1007.34620324,0.00019537,2]
[378581260,1754916650115,-513.81,0.00019537,2]
[378581262,1754916650130,-460.0,0.00019537,2]
[378581264,1754916650144,-460.0,0.00019537,2]
[378581266,1754916650153,-460.0,0.00019537,2]
[378581268,1754916650162,-460.0,0.00019537,2]
[378581270,1754916650172,-477.68,0.00019537,2]
[378581272,1754916650181,-460.0,0.00019537,2]
[378581274,1754916650190,-460.0,0.00019537,2]
[378581276,1754916650200,-554.75609801,0.00019537,2]
[378581278,1754916650210,-460.0,0.00019537,2]
[378581280,1754916650219,-460.0,0.00019537,2]
[378581282,1754916650229,-460.0,0.00019537,2]
[378581284,1754916650239,-460.0,0.00019537,2]
[378581286,1754916650250,-96.25755334,0.00019537,2]
[378581302,1754916650391,-363.74244666,0.00019537,2]
[378581304,1754916650400,-235.60755334,0.00019537,2]
[378581432,1754916651617,-265.20156743,0.00019178,2]
[378581444,1754916651718,-10.75999307,0.00019178,2]
[378581446,1754916651730,-191.62398433,0.00019178,2]
[378581448,1754916651740,-460.0,0.00019178,2]
[378581450,1754916651750,-460.0,0.00019178,2]
[378581452,1754916651759,-151.0,0.00019231,2]
[378581454,1754916651770,-250.0,0.00019231,2]
[378581456,1754916651779,-250.0,0.00019231,2]
[378581458,1754916651789,-151.0,0.00019231,2]
[378581460,1754916651799,-151.0,0.00019231,2]
[378581463,1754916651809,-289.68224253,0.00019231,2]
[378581465,1754916651819,-151.0,0.00019231,2]
[378581493,1754916652069,-460.0,0.00019241,2]
[378581495,1754916652080,-522.72509993,0.00019263,2]
[378581497,1754916652089,-224.39244666,0.00019537,2]
[378581499,1754916652099,-481.7,0.00019537,2]
[378581501,1754916652110,-473.6,0.00019537,2]
[378581503,1754916652120,-460.0,0.00019537,2]
[378581505,1754916652130,-601.95,0.00019537,2]
[378581507,1754916652142,-460.0,0.00019537,2]
[378581509,1754916652152,-830.37,0.00019537,2]
[378581511,1754916652161,-460.0,0.00019537,2]
[378581514,1754916652171,-460.0,0.00019537,2]
[378581516,1754916652180,-460.0,0.00019537,2]
[378581518,1754916652190,-460.0,0.00019537,2]
[378581519,1754916652200,-1214.85,0.00019537,2]
[378581521,1754916652209,-473.00876565,0.00019537,2]
[378581524,1754916652219,-460.0,0.00019537,2]
[378581526,1754916652229,-460.0,0.00019537,2]
[378581528,1754916652238,-460.0,0.00019537,2]
[378581530,1754916652247,-460.0,0.00019537,2]
[378581532,1754916652257,-460.0,0.00019537,2]
[378581534,1754916652267,-460.0,0.00019537,2]
[378581536,1754916652276,-503.07,0.00019537,2]
[378581538,1754916652285,-460.0,0.00019537,2]
[378581540,1754916652294,-460.0,0.00019537,2]
[378581542,1754916652304,-460.0,0.00019537,2]
[378581544,1754916652313,-750.66,0.00019537,2]
[378581546,1754916652322,-460.0,0.00019537,2]
[378581548,1754916652332,-460.0,0.00019537,2]
[378581550,1754916652341,-460.0,0.00019537,2]
[378581552,1754916652351,-1067.72,0.00019537,2]
[378581554,1754916652360,-460.0,0.00019537,2]
[378581556,1754916652370,-460.0,0.00019537,2]
[378581558,1754916652379,-151.0,0.00019588,2]
[378581560,1754916652392,-151.0,0.00019588,2]
[378581562,1754916652401,-151.0,0.00019588,2]
[378581564,1754916652411,-596.35,0.00019595,2]
[378581566,1754916652421,-151.0,0.00019638,2]
[378581568,1754916652431,-460.0,0.00019638,2]
[378581570,1754916652441,-433.884154,0.00019638,2]
[378581572,1754916652452,-433.884154,0.00019638,2]
[378581574,1754916652461,-846.638326,0.00019638,2]
[378581576,1754916652471,-846.638326,0.00019638,2]
[378581578,1754916652481,-743.52,0.00019638,2]
[378581580,1754916652491,-460.0,0.00019638,2]
[378581582,1754916652501,-460.0,0.00019638,2]
[378581584,1754916652510,-831.57,0.00019638,2]
[378581587,1754916652520,-460.0,0.00019638,2]
[378581589,1754916652529,-460.0,0.00019638,2]
[378581591,1754916652540,-460.0,0.00019638,2]
[378581593,1754916652549,-518.07,0.00019638,2]
[378581595,1754916652559,-460.0,0.00019638,2]
[378581597,1754916652568,-460.0,0.00019638,2]
[378581599,1754916652577,-538.97127199,0.00019638,2]
[378581601,1754916652587,-460.0,0.00019638,2]
[378581603,1754916652597,-481.16084887,0.00019638,2]
[378581605,1754916652607,-460.0,0.00019638,2]
[378581607,1754916652618,-1908.21,0.00019638,2]
[378581609,1754916652628,-731.79,0.00019638,2]
[378581611,1754916652639,-1463.1,0.00019638,2]
[378581613,1754916652648,-460.0,0.00019638,2]
[378581615,1754916652657,-460.0,0.00019638,2]
[378581617,1754916652667,-701.24,0.00019638,2]
[378581619,1754916652676,-11507.41,0.00019638,2]
[378581621,1754916652685,-460.0,0.00019638,2]
[378581623,1754916652695,-460.0,0.00019638,2]
[378581625,1754916652704,-3512.06,0.00019638,2]
[378581627,1754916652714,-460.0,0.00019638,2]
[378581629,1754916652723,-460.0,0.00019638,2]
[378581631,1754916652733,-460.0,0.00019638,2]
[378581633,1754916652743,-460.0,0.00019638,2]
[378581635,1754916652752,-635.54,0.00019638,2]
[378581637,1754916652762,-460.0,0.00019638,2]
[378581639,1754916652772,-613.11,0.00019638,2]
[378581641,1754916652783,-544.13,0.00019638,2]
[378581643,1754916652792,-684.8,0.00019638,2]
[378581645,1754916652802,-791.12,0.00019638,2]
[378581647,1754916652812,-4689.54,0.00019638,2]
[378581649,1754916652821,-460.0,0.00019638,2]
[378581651,1754916652831,-460.0,0.00019638,2]
[378581654,1754916652841,-460.0,0.00019638,2]
[378581656,1754916652850,-720.21,0.00019638,2]
[378581658,1754916652860,-460.0,0.00019638,2]
[378581660,1754916652870,-151.0,0.00019641,2]
[378581662,1754916652880,-151.0,0.00019641,2]
[378581664,1754916652890,-460.0,0.00019641,2]
[378581666,1754916652900,-460.0,0.00019641,2]
[378581668,1754916652910,-460.0,0.00019641,2]
[378581669,1754916652919,-460.0,0.00019641,2]
[378581670,1754916652928,-460.0,0.00019641,2]
[378581671,1754916652938,-460.0,0.00019641,2]
[378581672,1754916652947,-460.0,0.00019641,2]
[378581673,1754916652957,-460.0,0.00019641,2]
[378581674,1754916652966,-460.0,0.00019641,2]
[378581675,1754916652975,-460.0,0.00019641,2]
[378581676,1754916652985,-460.0,0.00019641,2]
[378581677,1754916652994,-460.0,0.00019641,2]
[378581678,1754916653004,-460.0,0.00019641,2]
[378581679,1754916653013,-460.0,0.00019641,2]
[378581680,1754916653023,-460.0,0.00019641,2]
[378581681,1754916653032,-460.0,0.00019641,2]
[378581682,1754916653042,-542.39,0.00019641,2]
[378581683,1754916653052,-460.0,0.00019641,2]
[378581684,1754916653061,-583.08,0.00019641,2]
[378581685,1754916653071,-2528.41,0.00019641,2]
[378581686,1754916653080,-2243.36,0.00019641,2]
[378581687,1754916653089,-464.25841897,0.00019641,2]
[378581688,1754916653099,-3281.59,0.00019641,2]
[378581689,1754916653108,-2251.37,0.00019641,2]
[378581690,1754916653117,-460.0,0.00019641,2]
[378581691,1754916653126,-460.0,0.00019641,2]
[378581692,1754916653137,-460.0,0.00019641,2]
[378581693,1754916653146,-859.05,0.00019641,2]
[378581694,1754916653156,-151.0,0.00019647,2]
[378581695,1754916653165,-151.0,0.00019647,2]
[378581696,1754916653176,-151.0,0.00019647,2]
[378581697,1754916653190,-302.6367542,0.00019656,2]
[378581698,1754916653200,-5000.0,0.00019709,2]
[378581699,1754916653209,-151.0,0.00019709,2]
[378581700,1754916653218,-8359.6624647,0.0001971,2]
[378581701,1754916653227,-500.0,0.00019725,2]
[378581702,1754916653237,-152.33575119,0.00019726,2]
[378581703,1754916653247,-280.83116402,0.00019726,2]
[378581704,1754916653256,-257.90489718,0.00019726,2]
[378581705,1754916653266,-453.0,0.00019726,2]
[378581706,1754916653275,-298.35778176,0.00019726,2]
[378581707,1754916653284,-151.0,0.00019726,2]
[378581708,1754916653294,-151.52793951,0.00019726,2]
[378581709,1754916653304,-151.0,0.00019726,2]
[378581710,1754916653314,-151.0,0.00019726,2]
[378581711,1754916653323,-500.0,0.00019726,2]
[378581712,1754916653332,-553.98,0.00019726,2]
[378581713,1754916653342,-560.72,0.00019726,2]
[378581714,1754916653351,-460.0,0.00019726,2]
[378581715,1754916653362,-1054.77,0.00019726,2]
[378581716,1754916653372,-846.48,0.00019726,2]
[378581717,1754916653381,-460.0,0.00019726,2]
[378581718,1754916653392,-460.0,0.00019726,2]
[378581719,1754916653401,-460.0,0.00019726,2]
[378581720,1754916653411,-556.44,0.00019726,2]
[378581721,1754916653421,-460.0,0.00019726,2]
[378581722,1754916653430,-460.0,0.00019726,2]
[378581723,1754916653443,-771.25,0.00019726,2]
[378581724,1754916653455,-460.0,0.00019726,2]
[378581726,1754916653464,-460.0,0.00019726,2]
[378581728,1754916653473,-523.04,0.00019726,2]
[378581729,1754916653482,-460.0,0.00019726,2]
[378581731,1754916653491,-460.0,0.00019726,2]
[378581732,1754916653503,-801.47,0.00019726,2]
[378581733,1754916653513,-460.0,0.00019726,2]
[378581734,1754916653522,-460.0,0.00019726,2]
[378581735,1754916653532,-460.0,0.00019726,2]
[378581736,1754916653541,-460.0,0.00019726,2]
[378581737,1754916653551,-460.0,0.00019726,2]
[378581738,1754916653560,-460.0,0.00019726,2]
[378581739,1754916653570,-460.0,0.00019726,2]
[378581740,1754916653579,-460.0,0.00019726,2]
[378581741,1754916653588,-460.0,0.00019726,2]
[378581742,1754916653598,-1422.81,0.00019726,2]
[378581743,1754916653607,-589.68,0.00019726,2]
[378581744,1754916653616,-460.0,0.00019726,2]
[378581745,1754916653625,-460.0,0.00019726,2]
[378581746,1754916653636,-460.0,0.00019726,2]
[378581747,1754916653645,-460.0,0.00019726,2]
[378581748,1754916653655,-460.0,0.00019726,2]
[378581749,1754916653664,-1346.16,0.00019726,2]
[378581750,1754916653674,-460.0,0.00019726,2]
[378581751,1754916653683,-460.0,0.00019726,2]
[378581752,1754916653692,-835.25,0.00019726,2]
[378581753,1754916653702,-460.0,0.00019726,2]
[378581754,1754916653712,-1251.45,0.00019726,2]
[378581755,1754916653721,-460.0,0.00019726,2]
[378581756,1754916653731,-460.0,0.00019726,2]
[378581757,1754916653740,-460.0,0.00019726,2]
[378581758,1754916653749,-1109.63,0.00019726,2]
[378581759,1754916653759,-460.0,0.00019726,2]
[378581760,1754916653769,-1777.51,0.00019726,2]
[378581761,1754916653778,-460.0,0.00019726,2]
[378581762,1754916653788,-849.23,0.00019726,2]
[378581763,1754916653797,-460.0,0.00019726,2]
[378581764,1754916653806,-460.0,0.00019726,2]
[378581765,1754916653816,-1123.26,0.00019726,2]
[378581766,1754916653825,-460.0,0.00019726,2]
[378581767,1754916653835,-460.0,0.00019726,2]
[378581768,1754916653844,-472.74049455,0.00019726,2]
[378581769,1754916653854,-554.33,0.00019726,2]
[378581770,1754916653863,-460.0,0.00019726,2]
[378581771,1754916653873,-460.0,0.00019726,2]
[378581772,1754916653883,-460.0,0.00019726,2]
[378581773,1754916653894,-460.0,0.00019726,2]
[378581774,1754916653903,-501.22,0.00019726,2]
[378581775,1754916653913,-709.58,0.00019726,2]
[378581776,1754916653923,-460.0,0.00019726,2]
[378581777,1754916653933,-460.0,0.00019726,2]
[378581778,1754916653942,-460.0,0.00019726,2]
[378581779,1754916653953,-3168.8,0.00019726,2]
[378581780,1754916653962,-460.0,0.00019726,2]
[378581781,1754916653971,-460.0,0.00019726,2]
[378581782,1754916653981,-471.45,0.00019726,2]
[378581783,1754916653990,-1169.83,0.00019726,2]